fUSD/lending_fUSD_20250423
["ID","MTS","AMOUNT","RATE_DAILY","PERIOD"]
[358705804,1745397039911,-293.41,0.00024799,2]
[358705805,1745397039921,-293.41,0.00024799,2]
[358705806,1745397039930,-293.41,0.00024799,2]
[358705807,1745397039940,-293.41,0.00024799,2]
[358705808,1745397039949,-293.41,0.00024799,2]
[358705809,1745397039959,-293.41,0.00024799,2]
[358705810,1745397039968,-150.0,0.00024799,2]
[358705811,1745397039978,-151.0,0.000248,7]
[358705812,1745397039987,-626859.514649,0.000248,3]
[358705813,1745397039997,-151.0,0.000248,7]
[358705814,1745397040006,-881.73346,0.000248,7]
[358705815,1745397040016,-881.73346,0.000248,7]
[358705816,1745397040025,-151.0,0.000248,7]
[358705817,1745397040035,-151.0,0.000248,7]
[358705818,1745397040045,-151.0,0.000248,7]
[358705819,1745397040054,-151.0,0.000248,7]
[358705820,1745397040064,-247.684145,0.000248,7]
[358705821,1745397040074,-1469.6,0.00024821,2]
[358705822,1745397040083,-470.0,0.00024884,2]
[358705823,1745397040094,-500.0,0.00024884,2]
[358705824,1745397040106,-500.0,0.00024899,2]
[358705825,1745397040116,-151.0,0.000249,7]
[358705826,1745397040126,-151.0,0.000249,7]
[358705827,1745397040135,-168.375537,0.000249,7]
[358705828,1745397040146,-151.0,0.000249,7]
[358705829,1745397040155,-151.0,0.000249,7]
[358705830,1745397040165,-151.0,0.000249,7]
[358705831,1745397040175,-151.0,0.000249,7]
[358705832,1745397040186,-151.0,0.000249,7]
[358705833,1745397040406,-151.0,0.000249,7]
[358705834,1745397040416,-151.0,0.000249,7]
[358705835,1745397040425,-232.250233,0.000249,7]
[358705836,1745397040435,-151.0,0.000249,7]
[358705837,1745397040444,-188.802785,0.000249,7]
[358705838,1745397040454,-151.0,0.000249,7]
[358705839,1745397040463,-151.0,0.000249,7]
[358705840,1745397040473,-153.375981,0.000249,7]
[358705841,1745397040483,-203.081804,0.000249,7]
[358705842,1745397040492,-203.081804,0.000249,7]
[358705843,1745397040502,-151.0,0.000249,7]
[358705844,1745397040513,-153.778021,0.000249,7]
[358705845,1745397040524,-151.0,0.000249,7]
[358705846,1745397040534,-151.0,0.000249,7]
[358705847,1745397040543,-151.0,0.000249,7]
[358705848,1745397040553,-151.0,0.000249,7]
[358705849,1745397040563,-220.921621,0.000249,7]
[358705850,1745397040572,-220.921621,0.000249,7]
[358705851,1745397040582,-157.455282,0.000249,7]
[358705852,1745397040592,-157.455282,0.000249,7]
[358705853,1745397040601,-151.0,0.000249,7]
[358705854,1745397040611,-151.0,0.000249,7]
[358705855,1745397040620,-152.124755,0.000249,7]
[358705856,1745397040630,-1802.470781,0.000249,7]
[358705857,1745397040639,-1802.470781,0.000249,7]
[358705858,1745397040650,-151.418341,0.000249,7]
[358705859,1745397040660,-1502.199312,0.000249,7]
[358705860,1745397040670,-1502.199312,0.000249,7]
[358705861,1745397040680,-472.82254,0.000249,2]
[358705862,1745397040690,-151.0,0.000249,7]
[358705863,1745397040700,-472.82254,0.000249,2]
[358705864,1745397040709,-190.265889,0.000249,7]
[358705865,1745397040719,-190.265889,0.000249,7]
[358705866,1745397040729,-151.0,0.000249,7]
[358705867,1745397040738,-151.0,0.000249,7]
[358705868,1745397040747,-151.0,0.000249,7]
[358705869,1745397040757,-151.0,0.000249,7]
[358705870,1745397040768,-151.0,0.000249,7]
[358705871,1745397040777,-151.0,0.000249,7]
[358705872,1745397040786,-830.993183,0.000249,7]
[358705873,1745397040796,-830.993183,0.000249,7]
[358705874,1745397040806,-151.0,0.000249,7]
[358705875,1745397040815,-151.0,0.000249,7]
[358705876,1745397040825,-240.140931,0.000249,7]
[358705877,1745397040834,-702.083466,0.000249,7]
[358705879,1745397040844,-269.553122,0.000249,7]
[358705880,1745397040854,-240.140931,0.000249,7]
[358705881,1745397040864,-559774.730018,0.000249,3]
[358705882,1745397040873,-702.083466,0.000249,7]
[358705883,1745397040884,-269.553122,0.000249,7]
[358705884,1745397040894,-151.0,0.000249,7]
[358705885,1745397040903,-881.73346,0.000249,7]
[358705886,1745397040913,-881.73346,0.000249,7]
[358705887,1745397040923,-881.73346,0.000249,7]
[358705888,1745397040932,-881.73346,0.000249,7]
[358705889,1745397040941,-151.0,0.000249,7]
[358705890,1745397040951,-185.123484,0.000249,7]
[358705891,1745397040961,-151.0,0.000249,7]
[358705892,1745397040971,-151.0,0.000249,7]
[358705893,1745397040981,-151.0,0.000249,7]
[358705895,1745397040991,-200.372614,0.000249,7]
[358705896,1745397041002,-200.372614,0.000249,7]
[358705897,1745397041012,-350.0,0.00025,2]
[358705898,1745397041025,-200.0,0.000251,2]
[358705899,1745397041034,-470.0,0.00025158,2]
[358705900,1745397041044,-500.0,0.00025158,2]
[358705901,1745397041054,-151.0,0.00025412,7]
[358705902,1745397041064,-151.0,0.00025412,7]
[358705903,1745397041074,-412.241262,0.00025412,7]
[358705904,1745397041084,-412.241262,0.00025412,7]
[358705905,1745397041094,-151.0,0.00025412,7]
[358705906,1745397041107,-151.0,0.00025412,7]
[358705907,1745397041117,-151.0,0.00025412,7]
[358705908,1745397041126,-587.736157,0.00025412,7]
[358705909,1745397041136,-587.736157,0.00025412,7]
[358705910,1745397041147,-151.0,0.00025412,7]
[358705911,1745397041157,-151.0,0.00025412,7]
[358705912,1745397041167,-154.615701,0.00025412,7]
[358705913,1745397041176,-151.0,0.00025412,7]
[358705914,1745397041187,-476.248427,0.00025412,7]
[358705915,1745397041197,-476.248427,0.00025412,7]
[358705916,1745397041207,-152.219188,0.00025412,7]
[358705917,1745397041216,-151.0,0.00025412,7]
[358705918,1745397041225,-151.0,0.00025412,7]
[358705919,1745397041234,-151.0,0.00025412,7]
[358705920,1745397041244,-151.0,0.00025412,7]
[358705921,1745397041254,-1000.0,0.00025419,2]
[358705922,1745397041263,-270.267021,0.00025422,7]
[358705923,1745397041277,-151.0,0.00025422,7]
[358705924,1745397041286,-209.421359,0.00025422,7]
[358705925,1745397041296,-155.837846,0.00025422,7]
[358705926,1745397041305,-195.315414,0.00025422,7]
[358705927,1745397041315,-178.60976,0.00025422,7]
[358705928,1745397041325,-151.0,0.00025422,7]
[358705929,1745397041334,-280.006792,0.00025422,7]
[358705930,1745397041343,-265.224957,0.00025422,7]
[358705931,1745397041353,-152.704056,0.00025422,7]
[358705932,1745397041362,-152.704056,0.00025422,7]
[358705933,1745397041372,-470.0,0.00025432,2]
[358705934,1745397041381,-500.0,0.00025432,2]
[358705935,1745397041391,-1039.18337032,0.00025452,2]
[358705936,1745397041400,-223.4,0.00025512,2]
[358705937,1745397041410,-6418.44360545,0.0002559,6]
[358705938,1745397041419,-470.0,0.00025706,2]
[358705939,1745397041429,-500.0,0.00025706,2]
[358705940,1745397041438,-1000.0,0.00025952,2]
[358705941,1745397041448,-685.57527812,0.00025952,2]
[358705942,1745397041457,-470.0,0.00025979,2]
[358705943,1745397041467,-495.32999651,0.00025979,2]
[358705944,1745397041476,-881.73346,0.0002607,7]
[358705945,1745397041486,-881.73346,0.0002607,7]
[358705946,1745397041496,-3802.58053551,0.00026089,2]
[358705947,1745397041505,-470.0,0.00026253,2]
[358705948,1745397041515,-1823.03638286,0.000264,2]
[358705949,1745397041527,-470.0,0.00026527,2]
[358705950,1745397041536,-223.4,0.00026621,2]
[358705951,1745397041546,-6418.44360545,0.00026762,6]
[358705952,1745397041555,-470.0,0.00026801,2]
[358705953,1745397041564,-1000.0,0.00026851,2]
[358705954,1745397041574,-509.92508194,0.00026851,2]
[358705955,1745397041583,-999.17900117,0.00026851,2]
[358705956,1745397041594,-1000.0,0.00026851,2]
[358705957,1745397041603,-400.0,0.00027,2]
[358705958,1745397041613,-295.627334,0.00027042,7]
[358705959,1745397041623,-151.0,0.00027042,7]
[358705960,1745397041634,-157.197216,0.00027042,7]
[358705961,1745397041643,-151.0,0.00027042,7]
[358705962,1745397041653,-151.0,0.00027042,7]
[358705963,1745397041662,-493.54182932,0.00027075,2]
[358705964,1745397041672,-1469.6,0.00027085,2]
[358705965,1745397041682,-200.0,0.000271,2]
[358705966,1745397041692,-1000.0,0.00027335,2]
[358705967,1745397041702,-499.26,0.00027397,2]
[358705969,1745397041712,-700.0,0.00027397,2]
[358705970,1745397041722,-1702.39,0.00027397,2]
[358705971,1745397041731,-500.0,0.00027397,5]
[358705972,1745397041741,-495.91186648,0.000274,2]
[358705973,1745397041750,-1102.0,0.000274,2]
[358705974,1745397041760,-530.15871669,0.00027413,5]
[358705975,1745397041772,-150.0,0.00027439,2]
[358705976,1745397041782,-150.0,0.00027439,2]
[358705977,1745397041791,-150.0,0.00027439,2]
[358705978,1745397041801,-881.73346,0.0002745,7]
[358705979,1745397041811,-881.73346,0.0002745,7]
[358705980,1745397041821,-151.0,0.0002746,7]
[358705981,1745397041830,-151.0,0.0002746,7]
[358705982,1745397041840,-151.0,0.0002746,7]
[358705983,1745397041849,-203.081804,0.0002746,7]
[358705984,1745397041858,-203.081804,0.0002746,7]
[358705985,1745397041868,-1802.470781,0.0002746,7]
[358705986,1745397041877,-1802.470781,0.0002746,7]
[358705987,1745397041887,-190.265889,0.0002746,7]
[358705988,1745397041896,-190.265889,0.0002746,7]
[358705989,1745397041906,-830.993183,0.0002746,7]
[358705990,1745397041915,-830.993183,0.0002746,7]
[358705991,1745397041925,-151.0,0.0002746,7]
[358705992,1745397041934,-151.0,0.0002746,7]
[358705993,1745397041944,-240.140931,0.0002746,7]
[358705994,1745397041954,-702.083466,0.0002746,7]
[358705995,1745397041964,-269.553122,0.0002746,7]
[358705996,1745397041973,-240.140931,0.0002746,7]
[358705997,1745397041982,-702.083466,0.0002746,7]
[358705998,1745397041992,-269.553122,0.0002746,7]
[358705999,1745397042002,-151.0,0.0002746,7]
[358706000,1745397042011,-151.0,0.0002746,7]
[358706001,1745397042023,-151.0,0.0002746,7]
[358706002,1745397042033,-200.372614,0.0002746,7]
[358706003,1745397042042,-193.8235621,0.000275,2]
[358706004,1745397042052,-151.0,0.00027521,7]
[358706005,1745397042062,-199.934739,0.00027521,7]
[358706006,1745397042072,-151.0,0.00027521,7]
[358706007,1745397042081,-300.3824,0.00027521,7]
[358706008,1745397042091,-151.0,0.00027521,7]
[358706009,1745397042102,-220.921621,0.00027521,7]
[358706010,1745397042113,-220.921621,0.00027521,7]
[358706011,1745397042122,-157.455282,0.00027521,7]
[358706012,1745397042132,-157.455282,0.00027521,7]
[358706013,1745397042141,-151.0,0.00027521,7]
[358706014,1745397042151,-151.0,0.00027521,7]
[358706015,1745397042160,-1502.199312,0.00027521,7]
[358706016,1745397042169,-1502.199312,0.00027521,7]
[358706017,1745397042178,-151.0,0.00027521,7]
[358706018,1745397042187,-472.82254,0.00027521,2]
[358706019,1745397042197,-472.82254,0.00027521,2]
[358706020,1745397042207,-151.0,0.00027521,7]
[358706021,1745397042216,-151.0,0.00027521,7]
[358706022,1745397042226,-151.0,0.00027521,7]
[358706023,1745397042235,-151.0,0.00027521,7]
[358706024,1745397042244,-151.0,0.00027521,7]
[358706025,1745397042254,-151.0,0.00027521,7]
[358706026,1745397042263,-151.0,0.00027521,7]
[358706027,1745397042276,-151.0,0.00027561,7]
[358706028,1745397042285,-151.0,0.00027561,7]
[358706029,1745397042295,-151.0,0.00027561,7]
[358706030,1745397042304,-151.0,0.00027561,7]
[358706031,1745397042313,-151.0,0.00027561,7]
[358706032,1745397042323,-159.822445,0.00027561,7]
[358706033,1745397042332,-151.0,0.00027561,7]
[358706034,1745397042341,-154.384564,0.00027561,7]
[358706035,1745397042351,-881.73346,0.00027561,7]
[358706036,1745397042360,-881.73346,0.00027561,7]
[358706037,1745397042369,-151.0,0.00027561,7]
[358706038,1745397042379,-151.0,0.00027571,7]
[358706039,1745397042388,-163.366,0.00027571,2]
[358706040,1745397042397,-796.0,0.00027571,2]
[358706041,1745397042406,-1570.553,0.00027571,2]
[358706042,1745397042416,-999.065,0.00027571,2]
[358706043,1745397042425,-1285.0,0.00027571,2]
[358706044,1745397042435,-547.0,0.00027571,2]
[358706045,1745397042444,-584.551,0.00027571,2]
[358706046,1745397042454,-4166.0,0.00027571,2]
[358706047,1745397042463,-151.0,0.00027571,7]
[358706048,1745397042473,-151.0,0.00027571,7]
[358706049,1745397042482,-412.241262,0.00027571,7]
[358706050,1745397042491,-412.241262,0.00027571,7]
[358706051,1745397042501,-151.0,0.00027571,7]
[358706052,1745397042510,-151.0,0.00027571,7]
[358706053,1745397042521,-151.0,0.00027571,7]
[358706054,1745397042531,-587.736157,0.00027571,7]
[358706055,1745397042540,-587.736157,0.00027571,7]
[358706056,1745397042550,-151.0,0.00027571,7]
[358706057,1745397042559,-151.0,0.00027571,7]
[358706058,1745397042569,-1132.0,0.00027571,2]
[358706059,1745397042578,-151.0,0.00027571,7]
[358706060,1745397042587,-476.248427,0.00027571,7]
[358706061,1745397042596,-476.248427,0.00027571,7]
[358706062,1745397042608,-151.0,0.00027571,7]
[358706063,1745397042617,-151.0,0.00027571,7]
[358706064,1745397042626,-151.0,0.00027571,7]
[358706065,1745397042636,-151.0,0.00027571,7]
[358706066,1745397042645,-1334.0,0.00027571,2]
[358706067,1745397042655,-917.0,0.00027571,2]
[358706068,1745397042664,-2145.0,0.00027571,2]
[358706069,1745397042673,-3984.0,0.00027571,2]
[358706070,1745397042683,-265.684,0.00027571,2]
[358706071,1745397042692,-254.601,0.00027571,2]
[358706072,1745397042701,-223.4,0.00027731,2]
[358706073,1745397042711,-6418.44360545,0.00027934,7]
[358706074,1745397042720,-279.63718743,0.00027945,5]
[358706075,1745397042730,-1000.0,0.00027961,2]
[358706076,1745397042739,-830.993183,0.0002798,7]
[358706077,1745397042749,-830.993183,0.0002798,7]
[358706078,1745397042758,-151.0,0.0002798,7]
[358706079,1745397042767,-240.140931,0.0002798,7]
[358706080,1745397042778,-702.083466,0.0002798,7]
[358706083,1745397042851,-269.553122,0.0002798,7]
[358706084,1745397042862,-240.140931,0.0002798,7]
[358706086,1745397042872,-702.083466,0.0002798,7]
[358706087,1745397042882,-269.553122,0.0002798,7]
[358706089,1745397042892,-200.372614,0.0002798,7]
[358706092,1745397042901,-156.192812,0.0002799,7]
[358706094,1745397042910,-201.682257,0.0002799,7]
[358706095,1745397042920,-881.73346,0.0002799,7]
[358706096,1745397042930,-881.73346,0.0002799,7]
[358706097,1745397042940,-151.0,0.0002799,7]
[358706098,1745397042951,-151.0,0.0002799,7]
[358706099,1745397042961,-1006.64328016,0.00028,2]
[358706100,1745397042970,-200.0,0.000281,2]
[358706101,1745397042981,-154.333565,0.00028256,7]
[358706102,1745397042990,-151.0,0.00028256,7]
[358706103,1745397042999,-153.302023,0.00028256,7]
[358706104,1745397043009,-151.0,0.00028256,7]
[358706105,1745397043021,-151.0,0.00028256,7]
[358706106,1745397043031,-874.166081,0.00028258,7]
[358706107,1745397043041,-909.565525,0.00028258,7]
[358706108,1745397043050,-909.565525,0.00028258,7]
[358706109,1745397043059,-734.670196,0.00028258,7]
[358706110,1745397043069,-159.436332,0.00028757,7]
[358706111,1745397043078,-151.0,0.00028757,7]
[358706112,1745397043087,-151.0,0.00028757,7]
[358706113,1745397043097,-181.360655,0.00028757,7]
[358706114,1745397043109,-151.0,0.00028757,7]
[358706115,1745397043118,-151.0,0.00028757,7]
[358706116,1745397043128,-151.0,0.00028757,7]
[358706117,1745397043138,-840.550709,0.00028757,7]
[358706118,1745397043147,-840.550709,0.00028757,7]
[358706119,1745397043157,-1702.39,0.00028767,2]
[358706120,1745397043166,-181.21,0.00028767,2]
[358706121,1745397043176,-223.4,0.0002884,2]
[358706122,1745397043186,-881.73346,0.0002895,7]
[358706123,1745397043196,-881.733458,0.0002895,7]
[358706124,1745397043205,-151.0,0.0002897,7]
[358706125,1745397043214,-151.531418,0.0002897,7]
[358706126,1745397043224,-185.809348,0.0002897,7]
[358706127,1745397043233,-185.809348,0.0002897,7]
[358706128,1745397043242,-151.0,0.0002897,7]
[358706129,1745397043252,-151.0,0.0002897,7]
[358706130,1745397043261,-151.0,0.0002897,7]
[358706131,1745397043272,-151.0,0.0002897,7]
[358706132,1745397043282,-151.0,0.0002897,7]
[358706133,1745397043291,-151.0,0.0002897,7]
[358706134,1745397043300,-203.081804,0.0002897,7]
[358706136,1745397043310,-203.081804,0.0002897,7]
[358706138,1745397043320,-151.0,0.0002897,7]
[358706139,1745397043329,-151.0,0.0002897,7]
[358706141,1745397043339,-151.0,0.0002897,7]
[358706143,1745397043348,-220.921621,0.0002897,7]
[358706145,1745397043357,-220.921621,0.0002897,7]
[358706147,1745397043367,-157.455282,0.0002897,7]
[358706149,1745397043376,-157.455282,0.0002897,7]
[358706150,1745397043385,-151.0,0.0002897,7]
[358706151,1745397043394,-151.0,0.0002897,7]
[358706152,1745397043404,-1802.470781,0.0002897,7]
[358706153,1745397043413,-1802.470781,0.0002897,7]
[358706155,1745397043423,-1502.199312,0.0002897,7]
[358706157,1745397043432,-1502.199312,0.0002897,7]
[358706159,1745397043441,-151.0,0.0002897,7]
[358706160,1745397043451,-472.82254,0.0002897,2]
[358706162,1745397043459,-472.82254,0.0002897,2]
[358706163,1745397043469,-190.265889,0.0002897,7]
[358706165,1745397043478,-190.265889,0.0002897,7]
[358706168,1745397043487,-151.0,0.0002897,7]
[358706170,1745397043495,-151.0,0.0002897,7]
[358706172,1745397043505,-151.0,0.0002897,7]
[358706174,1745397043514,-151.0,0.0002897,7]
[358706175,1745397043524,-151.0,0.0002897,7]
[358706178,1745397043534,-151.0,0.0002897,7]
[358706179,1745397043543,-412.241262,0.0002897,7]
[358706180,1745397043553,-412.241262,0.0002897,7]
[358706181,1745397043563,-151.0,0.0002897,7]
[358706182,1745397043572,-151.0,0.0002897,7]
[358706183,1745397043581,-151.0,0.0002897,7]
[358706184,1745397043590,-151.0,0.0002897,7]
[358706185,1745397043599,-151.0,0.0002897,7]
[358706186,1745397043609,-587.736157,0.0002897,7]
[358706187,1745397043618,-587.736157,0.0002897,7]
[358706188,1745397043628,-151.0,0.0002897,7]
[358706189,1745397043638,-161.625436,0.0002897,7]
[358706190,1745397043647,-151.0,0.0002897,7]
[358706191,1745397043656,-830.993183,0.0002897,7]
[358706192,1745397043665,-830.993183,0.0002897,7]
[358706193,1745397043675,-200.062805,0.0002897,7]
[358706194,1745397043684,-151.0,0.0002897,7]
[358706195,1745397043694,-476.248427,0.0002897,7]
[358706196,1745397043704,-476.248427,0.0002897,7]
[358706197,1745397043713,-240.140931,0.0002897,7]
[358706198,1745397043722,-702.083466,0.0002897,7]
[358706199,1745397043731,-269.553122,0.0002897,7]
[358706200,1745397043740,-240.140931,0.0002897,7]
[358706201,1745397043750,-702.083466,0.0002897,7]
[358706202,1745397043759,-269.553122,0.0002897,7]
[358706203,1745397043768,-151.0,0.0002897,7]
[358706204,1745397043779,-194.760697,0.0002897,7]
[358706205,1745397043788,-151.0,0.0002897,7]
[358706206,1745397043798,-151.0,0.0002897,7]
[358706207,1745397043807,-151.0,0.0002897,7]
[358706208,1745397043816,-151.0,0.0002897,7]
[358706209,1745397043825,-151.0,0.0002897,7]
[358706210,1745397043834,-200.372614,0.0002897,7]
[358706211,1745397043843,-151.0,0.0002898,7]
[358706212,1745397043853,-151.0,0.0002898,7]
[358706213,1745397043862,-152.704056,0.0002898,7]
[358706214,1745397043872,-152.704056,0.0002898,7]
[358706215,1745397043882,-151.0,0.0002899,7]
[358706216,1745397043892,-151.0,0.0002899,7]
[358706217,1745397043901,-830.993183,0.0002899,7]
[358706218,1745397043912,-830.993183,0.0002899,7]
[358706219,1745397043922,-151.0,0.0002899,7]
[358706220,1745397043931,-476.248427,0.0002899,7]
[358706221,1745397043941,-476.248427,0.0002899,7]
[358706222,1745397043951,-240.140931,0.0002899,7]
[358706223,1745397043960,-702.083466,0.0002899,7]
[358706224,1745397043969,-269.553122,0.0002899,7]
[358706225,1745397043980,-240.140931,0.0002899,7]
[358706226,1745397043990,-702.083466,0.0002899,7]
[358706227,1745397044000,-269.553122,0.0002899,7]
[358706228,1745397044010,-151.0,0.0002899,7]
[358706229,1745397044019,-151.0,0.0002899,7]
[358706230,1745397044029,-151.0,0.0002899,7]
[358706231,1745397044039,-200.372614,0.0002899,7]
[358706232,1745397044048,-500.0,0.00028999,2]
[358706233,1745397044059,-70364.84658972,0.00029,2]
[358706234,1745397044068,-151.0,0.00029,7]
[358706235,1745397044077,-151.0,0.00029,7]
[358706236,1745397044087,-155.059296,0.00029,7]
[358706237,1745397044096,-273.57087,0.00029,7]
[358706238,1745397044109,-151.0,0.00029,7]
[358706239,1745397044119,-154.650943,0.00029,7]
[358706240,1745397044129,-151.0,0.00029,7]
[358706241,1745397044139,-151.0,0.00029,7]
[358706242,1745397044149,-151.0,0.00029,7]
[358706243,1745397044159,-167.590921,0.00029,7]
[358706244,1745397044168,-151.0,0.00029,7]
[358706245,1745397044178,-151.0,0.00029,7]
[358706246,1745397044188,-151.0,0.00029,7]
[358706247,1745397044197,-151.0,0.00029,7]
[358706248,1745397044206,-151.0,0.00029,7]
[358706249,1745397044216,-203.081804,0.00029,7]
[358706250,1745397044227,-203.081804,0.00029,7]
[358706251,1745397044236,-151.0,0.00029,7]
[358706252,1745397044245,-151.0,0.00029,7]
[358706253,1745397044255,-151.0,0.00029,7]
[358706254,1745397044264,-220.921621,0.00029,7]
[358706255,1745397044275,-220.921621,0.00029,7]
[358706256,1745397044284,-157.455282,0.00029,7]
[358706257,1745397044294,-157.455282,0.00029,7]
[358706258,1745397044303,-151.0,0.00029,7]
[358706259,1745397044313,-151.0,0.00029,7]
[358706260,1745397044322,-1802.470781,0.00029,7]
[358706261,1745397044331,-1802.470781,0.00029,7]
[358706262,1745397044341,-1502.199312,0.00029,7]
[358706263,1745397044350,-1502.199312,0.00029,7]
[358706264,1745397044360,-151.0,0.00029,7]
[358706265,1745397044369,-472.82254,0.00029,2]
[358706266,1745397044379,-472.82254,0.00029,2]
[358706267,1745397044388,-190.265889,0.00029,7]
[358706268,1745397044398,-190.265889,0.00029,7]
[358706269,1745397044408,-151.0,0.00029,7]
[358706270,1745397044418,-151.0,0.00029,7]
[358706271,1745397044428,-151.0,0.00029,7]
[358706272,1745397044437,-151.0,0.00029,7]
[358706273,1745397044447,-151.0,0.00029,7]
[358706274,1745397044456,-151.0,0.00029,7]
[358706275,1745397044466,-412.241262,0.00029,7]
[358706276,1745397044476,-412.241262,0.00029,7]
[358706277,1745397044485,-151.0,0.00029,7]
[358706278,1745397044494,-151.0,0.00029,7]
[358706279,1745397044504,-151.0,0.00029,7]
[358706280,1745397044514,-151.0,0.00029,7]
[358706281,1745397044526,-151.0,0.00029,7]
[358706282,1745397044535,-587.736157,0.00029,7]
[358706283,1745397044545,-587.736157,0.00029,7]
[358706284,1745397044555,-151.0,0.00029,7]
[358706285,1745397044564,-450.0,0.00029,2]
[358706286,1745397044574,-151.0,0.00029,7]
[358706287,1745397044583,-241.922175,0.00029,7]
[358706288,1745397044593,-151.0,0.00029,7]
[358706289,1745397044603,-200.0,0.000291,2]
[358706290,1745397044612,-6418.44360545,0.00029107,8]
[358706291,1745397044622,-500.0,0.00029112,2]
[358706292,1745397044632,-1469.6,0.00029348,2]
[358706293,1745397044642,-223.4,0.00029949,2]
[358706294,1745397044652,-1320.95623379,0.0003,20]
[358706295,1745397044661,-5379.93769628,0.0003,10]
[358706296,1745397044671,-451.15295149,0.0003,2]
[358706297,1745397044680,-194.2,0.0003,2]
[358706298,1745397044689,-160.70290143,0.0003,2]
[358706299,1745397044699,-151.0,0.0003,7]
[358706300,1745397044708,-874.166081,0.0003,7]
[358706301,1745397044717,-151.0,0.0003,7]
[358706302,1745397044727,-151.0,0.0003,7]
[358706303,1745397044736,-151.0,0.0003,7]
[358706304,1745397044746,-909.565525,0.0003,7]
[358706305,1745397044755,-909.565525,0.0003,7]
[358706306,1745397044765,-734.670196,0.0003,7]
[358706307,1745397044776,-151.0,0.0003,7]
[358706308,1745397044785,-830.993183,0.0003,7]
[358706309,1745397044795,-830.993183,0.0003,7]
[358706310,1745397044804,-151.0,0.0003,7]
[358706311,1745397044814,-476.248427,0.0003,7]
[358706312,1745397044823,-476.248427,0.0003,7]
[358706313,1745397044833,-240.140931,0.0003,7]
[358706314,1745397044843,-702.083466,0.0003,7]
[358706315,1745397044853,-269.553122,0.0003,7]
[358706316,1745397044863,-240.140931,0.0003,7]
[358706317,1745397044873,-702.083466,0.0003,7]
[358706318,1745397044882,-269.553122,0.0003,7]
[358706319,1745397044891,-151.0,0.0003,7]
[358706320,1745397044901,-151.0,0.0003,7]
[358706321,1745397044911,-151.0,0.0003,7]
[358706322,1745397044920,-200.372614,0.0003,7]
[358706323,1745397044930,-151.0,0.00030087,7]
[358706324,1745397044939,-610.0,0.00030137,2]
[358706325,1745397044949,-1702.39,0.00030137,2]
[358706326,1745397044959,-151.0,0.00030137,7]
[358706327,1745397044969,-6418.44360545,0.00030279,9]
[358706328,1745397044978,-151.0,0.00030429,7]
[358706329,1745397044988,-151.0,0.00030429,7]
[358706330,1745397044997,-151.0,0.00030429,7]
[358706331,1745397045007,-156.576721,0.0003046,7]
[358706332,1745397045017,-185.809348,0.0003046,7]